[Event "Early-Titled-Tuesday-Blitz-July-09-2024"]
[Site "Chess.com"]
[Date "2024.07.09"]
[Round "8"]
[White "Cheer_Down"]
[Black "DanylaBagrov"]
[Result "0-1"]
[WhiteElo "2424"]
[BlackElo "2594"]
[TimeControl "180+1"]
[EndTime "9:28:43 PDT"]
[Termination "DanylaBagrov won by resignation"]

1. e4 {[%clk 0:03:00.9]} 1... c5 {[%clk 0:02:58.8]} 2. Nf3 {[%clk 0:03:00.5]}
2... a6 {[%clk 0:02:59.4]} 3. g3 {[%clk 0:02:58.6]} 3... Nc6 {[%clk 0:02:57.1]}
4. Bg2 {[%clk 0:02:58.1]} 4... Nf6 {[%clk 0:02:57.7]} 5. O-O {[%clk 0:02:54.1]}
5... Nxe4 {[%clk 0:02:56.2]} 6. d4 {[%clk 0:02:51.3]} 6... cxd4 {[%clk
0:02:49.9]} 7. Nxd4 {[%clk 0:02:51.4]} 7... d5 {[%clk 0:02:42]} 8. c4 {[%clk
0:02:45.7]} 8... e6 {[%clk 0:02:37]} 9. cxd5 {[%clk 0:02:44.1]} 9... exd5 {[%clk
0:02:37.9]} 10. Nc3 {[%clk 0:02:43]} 10... Nxc3 {[%clk 0:02:36.8]} 11. bxc3
{[%clk 0:02:41.1]} 11... Be7 {[%clk 0:02:35]} 12. Nxc6 {[%clk 0:02:33.7]} 12...
bxc6 {[%clk 0:02:34.2]} 13. c4 {[%clk 0:02:34.3]} 13... Be6 {[%clk 0:02:29.5]}
14. cxd5 {[%clk 0:02:25.6]} 14... Bxd5 {[%clk 0:02:17.5]} 15. Bxd5 {[%clk
0:01:51.5]} 15... Qxd5 {[%clk 0:02:09]} 16. Bb2 {[%clk 0:01:46.3]} 16... O-O
{[%clk 0:02:07.1]} 17. Qg4 {[%clk 0:01:36.6]} 17... f6 {[%clk 0:02:03.1]} 18.
Rfe1 {[%clk 0:01:29.9]} 18... Bc5 {[%clk 0:01:51.6]} 19. Rad1 {[%clk 0:01:27.3]}
19... Qxa2 {[%clk 0:01:51.2]} 20. Rc1 {[%clk 0:01:13.4]} 20... Bxf2+ {[%clk
0:01:45.5]} 21. Kxf2 {[%clk 0:01:13.9]} 21... Qxb2+ {[%clk 0:01:45.6]} 22. Kg1
{[%clk 0:01:14.6]} 22... Rac8 {[%clk 0:01:30.8]} 23. Rb1 {[%clk 0:01:05.5]}
23... Qc2 {[%clk 0:01:29.1]} 24. Rb7 {[%clk 0:01:03.5]} 24... Qc5+ {[%clk
0:01:21.3]} 25. Kf1 {[%clk 0:00:56.9]} 25... Qg5 {[%clk 0:01:18.9]} 26. Qc4+
{[%clk 0:00:48.7]} 26... Kh8 {[%clk 0:01:11.5]} 27. Ree7 {[%clk 0:00:48.3]}
27... Rg8 {[%clk 0:01:04.4]} 28. Qxa6 {[%clk 0:00:48.4]} 28... c5 {[%clk
0:00:56]} 29. Qa7 {[%clk 0:00:48.4]} 29... c4 {[%clk 0:00:52.5]} 30. Rbc7 {[%clk
0:00:45.7]} 30... c3 {[%clk 0:00:43.4]} 31. Rxg7 {[%clk 0:00:42.7]} 31... Qf5+
{[%clk 0:00:37.4]} 32. Kg1 {[%clk 0:00:34.5]} 32... Rxg7 {[%clk 0:00:35.8]} 33.
Rxg7 {[%clk 0:00:32.9]} 33... c2 {[%clk 0:00:34]} 0-1

[Event "Early-Titled-Tuesday-Blitz-July-09-2024"]
[Site "Chess.com"]
[Date "2024.07.09"]
[Round "8"]
[White "NikitaShnadrygin"]
[Black "Zq1"]
[Result "0-1"]
[WhiteElo "2722"]
[BlackElo "2594"]
[TimeControl "180+1"]
[EndTime "9:28:44 PDT"]
[Termination "Zq1 won on time"]

1. e4 {[%clk 0:03:00.9]} 1... c5 {[%clk 0:02:58.6]} 2. Nf3 {[%clk 0:03:00.9]}
2... d6 {[%clk 0:02:58.5]} 3. d4 {[%clk 0:03:01.2]} 3... cxd4 {[%clk 0:02:58.5]}
4. Nxd4 {[%clk 0:03:02.1]} 4... Nf6 {[%clk 0:02:58.5]} 5. Nc3 {[%clk 0:03:02.1]}
5... Nc6 {[%clk 0:02:58.6]} 6. f3 {[%clk 0:02:59.9]} 6... Nxd4 {[%clk
0:02:57.7]} 7. Qxd4 {[%clk 0:02:59.5]} 7... g6 {[%clk 0:02:58.3]} 8. Be3 {[%clk
0:02:57.2]} 8... Bg7 {[%clk 0:02:58.8]} 9. Qd2 {[%clk 0:02:57.1]} 9... O-O
{[%clk 0:02:56.9]} 10. g4 {[%clk 0:02:52]} 10... Be6 {[%clk 0:02:55.1]} 11.
O-O-O {[%clk 0:02:42.8]} 11... Rc8 {[%clk 0:02:53.8]} 12. a3 {[%clk 0:02:38]}
12... Rxc3 {[%clk 0:02:48.4]} 13. bxc3 {[%clk 0:02:17.1]} 13... Qa5 {[%clk
0:02:46.8]} 14. Kb2 {[%clk 0:02:13.7]} 14... Nd7 {[%clk 0:02:38.4]} 15. Bd4
{[%clk 0:02:08.3]} 15... Ne5 {[%clk 0:02:38.2]} 16. Be2 {[%clk 0:01:57.5]} 16...
Rc8 {[%clk 0:02:30.7]} 17. h4 {[%clk 0:01:16.1]} 17... Rc6 {[%clk 0:02:13.1]}
18. c4 {[%clk 0:01:06.6]} 18... Qxd2 {[%clk 0:01:31.9]} 19. Rxd2 {[%clk
0:01:06.3]} 19... Bxc4 {[%clk 0:01:31.8]} 20. c3 {[%clk 0:00:15]} 20... Bxe2
{[%clk 0:01:23.1]} 21. Rxe2 {[%clk 0:00:15.9]} 21... Nxf3 {[%clk 0:01:22.8]} 22.
Bxg7 {[%clk 0:00:14.9]} 22... Kxg7 {[%clk 0:01:21.9]} 23. h5 {[%clk 0:00:12.1]}
23... g5 {[%clk 0:01:16.1]} 24. Rf2 {[%clk 0:00:09.3]} 24... Ne5 {[%clk
0:01:13.6]} 25. Rg2 {[%clk 0:00:01.5]} 25... h6 {[%clk 0:01:11.5]} 26. Rf1
{[%clk 0:00:01.4]} 26... Rc4 {[%clk 0:01:09.5]} 27. Kb3 {[%clk 0:00:01.7]} 27...
Rxe4 {[%clk 0:01:07.2]} 28. Rfg1 {[%clk 0:00:02.6]} 28... b5 {[%clk 0:01:04.3]}
29. Kc2 {[%clk 0:00:02.7]} 29... Nc4 {[%clk 0:00:59.7]} 30. Kd3 {[%clk
0:00:02.4]} 30... d5 {[%clk 0:00:59.1]} 31. Rb1 {[%clk 0:00:01.2]} 31... a6
{[%clk 0:00:54.2]} 32. a4 {[%clk 0:00:01.3]} 32... Ne5+ {[%clk 0:00:50.5]} 0-1

[Event "Early-Titled-Tuesday-Blitz-July-09-2024"]
[Site "Chess.com"]
[Date "2024.07.09"]
[Round "8"]
[White "Bilan_Danila"]
[Black "krzyzan94"]
[Result "0-1"]
[WhiteElo "2592"]
[BlackElo "2778"]
[TimeControl "180+1"]
[EndTime "9:28:49 PDT"]
[Termination "krzyzan94 won by resignation"]

1. d4 {[%clk 0:03:00.9]} 1... Nf6 {[%clk 0:02:59.8]} 2. Nf3 {[%clk 0:02:59.6]}
2... c5 {[%clk 0:02:59.4]} 3. e3 {[%clk 0:02:58.1]} 3... g6 {[%clk 0:02:57.8]}
4. c4 {[%clk 0:02:56.6]} 4... cxd4 {[%clk 0:02:57.3]} 5. Nxd4 {[%clk 0:02:54.6]}
5... Bg7 {[%clk 0:02:58.2]} 6. Nc3 {[%clk 0:02:54.6]} 6... O-O {[%clk
0:02:58.6]} 7. Be2 {[%clk 0:02:54.7]} 7... d5 {[%clk 0:02:58.4]} 8. cxd5 {[%clk
0:02:53.6]} 8... Nxd5 {[%clk 0:02:59.3]} 9. Nxd5 {[%clk 0:02:54.2]} 9... Qxd5
{[%clk 0:02:59.2]} 10. Bf3 {[%clk 0:02:54.9]} 10... Qa5+ {[%clk 0:02:56.8]} 11.
Bd2 {[%clk 0:02:53.8]} 11... Qb6 {[%clk 0:02:57.5]} 12. Bc3 {[%clk 0:02:51.3]}
12... Nd7 {[%clk 0:02:57.3]} 13. Qb3 {[%clk 0:02:33.8]} 13... Qxb3 {[%clk
0:02:37.8]} 14. axb3 {[%clk 0:02:25.7]} 14... a6 {[%clk 0:02:25.7]} 15. b4
{[%clk 0:02:21.7]} 15... Ne5 {[%clk 0:02:12.8]} 16. Be4 {[%clk 0:01:56.3]} 16...
Rd8 {[%clk 0:02:09.1]} 17. b5 {[%clk 0:01:48.3]} 17... f5 {[%clk 0:01:40.1]} 18.
Bc2 {[%clk 0:01:39.9]} 18... Bd7 {[%clk 0:01:38.2]} 19. Bb3+ {[%clk 0:01:29.5]}
19... Kf8 {[%clk 0:01:32.4]} 20. bxa6 {[%clk 0:01:23.3]} 20... bxa6 {[%clk
0:01:27.3]} 21. O-O {[%clk 0:01:19.4]} 21... Nd3 {[%clk 0:01:09.2]} 22. Bc4
{[%clk 0:01:11.9]} 22... Bxd4 {[%clk 0:01:05.6]} 23. exd4 {[%clk 0:01:00.8]}
23... Bb5 {[%clk 0:01:02.5]} 24. Bxd3 {[%clk 0:00:57.9]} 24... Bxd3 {[%clk
0:01:02.2]} 25. Rfe1 {[%clk 0:00:58.5]} 25... Kf7 {[%clk 0:00:59.2]} 26. Bb4
{[%clk 0:00:57.5]} 26... Rd7 {[%clk 0:00:58.3]} 27. Bc5 {[%clk 0:00:57.3]} 27...
Bb5 {[%clk 0:00:57.8]} 28. b4 {[%clk 0:00:56.9]} 28... e6 {[%clk 0:00:56.9]} 29.
f4 {[%clk 0:00:55.1]} 29... Rg8 {[%clk 0:00:52.3]} 30. h4 {[%clk 0:00:54.5]}
30... h6 {[%clk 0:00:52.4]} 31. Ra3 {[%clk 0:00:53.3]} 31... g5 {[%clk
0:00:46.5]} 32. hxg5 {[%clk 0:00:52.9]} 32... hxg5 {[%clk 0:00:47.4]} 33. Rh3
{[%clk 0:00:39.7]} 33... gxf4 {[%clk 0:00:34.5]} 34. Rh7+ {[%clk 0:00:38.5]}
34... Kg6 {[%clk 0:00:30.1]} 35. Rxe6+ {[%clk 0:00:33.3]} 35... Kxh7 {[%clk
0:00:29.8]} 0-1

[Event "Early-Titled-Tuesday-Blitz-July-09-2024"]
[Site "Chess.com"]
[Date "2024.07.09"]
[Round "8"]
[White "amylazy"]
[Black "sathvikadiga"]
[Result "0-1"]
[WhiteElo "2505"]
[BlackElo "2668"]
[TimeControl "180+1"]
[EndTime "9:28:50 PDT"]
[Termination "sathvikadiga won by resignation"]

1. d4 {[%clk 0:02:56]} 1... d5 {[%clk 0:02:59.2]} 2. Nf3 {[%clk 0:02:56.9]} 2...
Nf6 {[%clk 0:02:59]} 3. c4 {[%clk 0:02:57.8]} 3... c6 {[%clk 0:02:59.3]} 4. Qc2
{[%clk 0:02:56.6]} 4... g6 {[%clk 0:02:49.9]} 5. Bf4 {[%clk 0:02:55.7]} 5... Bf5
{[%clk 0:02:48.5]} 6. Qb3 {[%clk 0:02:55.6]} 6... Qb6 {[%clk 0:02:49]} 7. e3
{[%clk 0:02:54.1]} 7... Nbd7 {[%clk 0:02:44.6]} 8. Nc3 {[%clk 0:02:53.9]} 8...
e6 {[%clk 0:02:36]} 9. h3 {[%clk 0:02:52.6]} 9... Be7 {[%clk 0:02:27.3]} 10. Be2
{[%clk 0:02:50.6]} 10... O-O {[%clk 0:02:24.4]} 11. Nd2 {[%clk 0:02:49.1]} 11...
e5 {[%clk 0:01:13.9]} 12. dxe5 {[%clk 0:02:47.7]} 12... Ne4 {[%clk 0:01:13.2]}
13. Ndxe4 {[%clk 0:02:38.5]} 13... dxe4 {[%clk 0:01:14.1]} 14. O-O {[%clk
0:02:35.8]} 14... Nc5 {[%clk 0:00:47.3]} 15. Qc2 {[%clk 0:02:26.7]} 15... Nd3
{[%clk 0:00:43]} 16. Bxd3 {[%clk 0:02:14.6]} 16... exd3 {[%clk 0:00:43.9]} 17.
Qd2 {[%clk 0:02:15.3]} 17... Rfd8 {[%clk 0:00:43]} 18. Na4 {[%clk 0:02:05.9]}
18... Qa6 {[%clk 0:00:39.2]} 19. b3 {[%clk 0:02:04.8]} 19... b5 {[%clk
0:00:37.7]} 20. cxb5 {[%clk 0:02:02.6]} 20... cxb5 {[%clk 0:00:38.6]} 21. Nc3
{[%clk 0:02:02.1]} 21... Bb4 {[%clk 0:00:38.2]} 22. Rfc1 {[%clk 0:02:00.4]}
22... Rac8 {[%clk 0:00:38.2]} 23. a3 {[%clk 0:01:56.6]} 23... Bxa3 {[%clk
0:00:19.1]} 24. Rd1 {[%clk 0:01:30.3]} 24... b4 {[%clk 0:00:17.5]} 25. Na4
{[%clk 0:01:28.6]} 25... Qa5 {[%clk 0:00:11.3]} 26. f3 {[%clk 0:01:28.2]} 26...
Rc2 {[%clk 0:00:11.3]} 27. Qe1 {[%clk 0:01:28]} 27... d2 {[%clk 0:00:10.2]} 28.
Qf2 {[%clk 0:01:26.9]} 28... Be6 {[%clk 0:00:07.2]} 29. Rab1 {[%clk 0:01:18.6]}
29... Bxb3 {[%clk 0:00:07.2]} 30. Rxb3 {[%clk 0:01:18]} 30... Qxa4 {[%clk
0:00:07.5]} 31. Rbb1 {[%clk 0:01:18.3]} 31... Rc1 {[%clk 0:00:07.8]} 32. Qf1
{[%clk 0:01:07.2]} 32... Rxb1 {[%clk 0:00:06.5]} 33. Rxb1 {[%clk 0:01:07.1]}
33... d1=Q {[%clk 0:00:07]} 34. Kh2 {[%clk 0:01:05.6]} 34... Qxf1 {[%clk
0:00:06.7]} 35. Rxf1 {[%clk 0:01:05.8]} 35... b3 {[%clk 0:00:07.6]} 36. e4
{[%clk 0:01:05.8]} 36... b2 {[%clk 0:00:07.9]} 37. e6 {[%clk 0:01:05.8]} 37...
fxe6 {[%clk 0:00:07.7]} 38. Bg5 {[%clk 0:01:06.4]} 38... Rd1 {[%clk 0:00:07.8]}
0-1

[Event "Early-Titled-Tuesday-Blitz-July-09-2024"]
[Site "Chess.com"]
[Date "2024.07.09"]
[Round "8"]
[White "Happy1712Drummer"]
[Black "Dewarfd"]
[Result "1-0"]
[WhiteElo "2437"]
[BlackElo "2083"]
[TimeControl "180+1"]
[EndTime "9:28:50 PDT"]
[Termination "Happy1712Drummer won on time"]

1. e4 {[%clk 0:02:56.2]} 1... c5 {[%clk 0:02:47.4]} 2. b3 {[%clk 0:02:55.8]}
2... e6 {[%clk 0:02:26.9]} 3. Bb2 {[%clk 0:02:42.1]} 3... Nf6 {[%clk 0:02:24.8]}
4. e5 {[%clk 0:02:24.8]} 4... Nd5 {[%clk 0:02:20.6]} 5. Nf3 {[%clk 0:02:25.7]}
5... d6 {[%clk 0:02:19.4]} 6. c4 {[%clk 0:02:22.2]} 6... Nb4 {[%clk 0:02:13.3]}
7. a3 {[%clk 0:02:16.2]} 7... N4c6 {[%clk 0:02:11.7]} 8. exd6 {[%clk 0:02:15.2]}
8... Qxd6 {[%clk 0:02:11.9]} 9. Nc3 {[%clk 0:02:09.7]} 9... a6 {[%clk
0:02:10.8]} 10. Ne4 {[%clk 0:02:07.4]} 10... Qd8 {[%clk 0:02:07.7]} 11. Be2
{[%clk 0:01:59.7]} 11... Nd7 {[%clk 0:02:06.1]} 12. O-O {[%clk 0:01:58.1]} 12...
Nf6 {[%clk 0:01:59.3]} 13. Nxf6+ {[%clk 0:01:54.1]} 13... gxf6 {[%clk 0:01:59]}
14. d4 {[%clk 0:01:53]} 14... cxd4 {[%clk 0:01:56.8]} 15. Nxd4 {[%clk
0:01:53.9]} 15... Nxd4 {[%clk 0:01:56.7]} 16. Bxd4 {[%clk 0:01:50.1]} 16... e5
{[%clk 0:01:49.5]} 17. Bb2 {[%clk 0:01:49.1]} 17... Qxd1 {[%clk 0:01:48.7]} 18.
Raxd1 {[%clk 0:01:50]} 18... Be6 {[%clk 0:01:43]} 19. f4 {[%clk 0:01:47.1]}
19... Bg7 {[%clk 0:01:37.3]} 20. Bf3 {[%clk 0:01:40.2]} 20... Rb8 {[%clk
0:01:18.4]} 21. Bd5 {[%clk 0:01:26.5]} 21... Bg4 {[%clk 0:00:15.4]} 22. Rde1
{[%clk 0:01:02]} 22... O-O {[%clk 0:00:13.6]} 23. fxe5 {[%clk 0:00:49.8]} 23...
fxe5 {[%clk 0:00:13.4]} 24. Bxe5 {[%clk 0:00:50.7]} 24... Bh5 {[%clk 0:00:03.8]}
25. Bxb8 {[%clk 0:00:40.3]} 25... Rxb8 {[%clk 0:00:02.8]} 26. Re7 {[%clk
0:00:39.5]} 26... b5 {[%clk 0:00:01.5]} 27. Bxf7+ {[%clk 0:00:35.6]} 1-0

[Event "Early-Titled-Tuesday-Blitz-July-09-2024"]
[Site "Chess.com"]
[Date "2024.07.09"]
[Round "8"]
[White "profedechess93"]
[Black "maracayo"]
[Result "0-1"]
[WhiteElo "2606"]
[BlackElo "2446"]
[TimeControl "180+1"]
[EndTime "9:28:51 PDT"]
[Termination "maracayo won by resignation"]

1. e4 {[%clk 0:03:00.3]} 1... d6 {[%clk 0:03:00]} 2. d4 {[%clk 0:02:58.3]} 2...
Nf6 {[%clk 0:02:59.9]} 3. Nc3 {[%clk 0:02:58.7]} 3... c6 {[%clk 0:02:59.8]} 4.
Bg5 {[%clk 0:02:55]} 4... Nbd7 {[%clk 0:02:58.9]} 5. Qd2 {[%clk 0:02:54.1]} 5...
Qa5 {[%clk 0:02:58.6]} 6. Bd3 {[%clk 0:02:51.1]} 6... e5 {[%clk 0:02:58.1]} 7.
Nf3 {[%clk 0:02:45.1]} 7... Be7 {[%clk 0:02:57.6]} 8. O-O-O {[%clk 0:02:39.1]}
8... b5 {[%clk 0:02:51.7]} 9. Kb1 {[%clk 0:02:37.7]} 9... b4 {[%clk 0:02:51]}
10. Ne2 {[%clk 0:02:36.9]} 10... c5 {[%clk 0:02:42.1]} 11. dxe5 {[%clk
0:02:32.2]} 11... dxe5 {[%clk 0:02:39]} 12. Ng3 {[%clk 0:02:30.9]} 12... h6
{[%clk 0:02:24.9]} 13. Bxf6 {[%clk 0:02:05.9]} 13... Bxf6 {[%clk 0:02:09.7]} 14.
Bc4 {[%clk 0:01:46.2]} 14... O-O {[%clk 0:01:49.1]} 15. Qd6 {[%clk 0:01:21.3]}
15... Nb6 {[%clk 0:01:09.8]} 16. Bd5 {[%clk 0:01:15.9]} 16... Rd8 {[%clk
0:00:54]} 17. Qc6 {[%clk 0:00:36.9]} 17... Bd7 {[%clk 0:00:47.5]} 18. Qb7 {[%clk
0:00:20.7]} 18... Rab8 {[%clk 0:00:43.2]} 19. Qc7 {[%clk 0:00:20.9]} 19... Rbc8
{[%clk 0:00:37.4]} 20. Qb7 {[%clk 0:00:19.1]} 20... Nxd5 {[%clk 0:00:26.4]} 21.
Rxd5 {[%clk 0:00:17.3]} 21... Rc7 {[%clk 0:00:24.1]} 22. Rxd7 {[%clk 0:00:10.9]}
22... Rdxd7 {[%clk 0:00:21.3]} 23. Qa8+ {[%clk 0:00:09.8]} 23... Rd8 {[%clk
0:00:21]} 0-1

[Event "Early-Titled-Tuesday-Blitz-July-09-2024"]
[Site "Chess.com"]
[Date "2024.07.09"]
[Round "8"]
[White "SuperPower2011"]
[Black "rdarruda"]
[Result "1-0"]
[WhiteElo "2720"]
[BlackElo "2561"]
[TimeControl "180+1"]
[EndTime "9:28:52 PDT"]
[Termination "SuperPower2011 won by checkmate"]

1. b3 {[%clk 0:03:00.9]} 1... e5 {[%clk 0:02:59]} 2. Bb2 {[%clk 0:03:00.8]} 2...
Nc6 {[%clk 0:02:59.2]} 3. e3 {[%clk 0:02:59.7]} 3... d6 {[%clk 0:02:59.3]} 4. c4
{[%clk 0:02:58.7]} 4... Nf6 {[%clk 0:02:59]} 5. Nc3 {[%clk 0:02:58.8]} 5... g6
{[%clk 0:02:56.3]} 6. g3 {[%clk 0:02:59]} 6... Bg7 {[%clk 0:02:56.4]} 7. Bg2
{[%clk 0:02:59.9]} 7... O-O {[%clk 0:02:56.1]} 8. Nge2 {[%clk 0:03:00.5]} 8...
Bf5 {[%clk 0:02:55.9]} 9. O-O {[%clk 0:02:57.1]} 9... Qd7 {[%clk 0:02:55.3]} 10.
d4 {[%clk 0:02:54.4]} 10... Bh3 {[%clk 0:02:53.8]} 11. d5 {[%clk 0:02:54.6]}
11... Ne7 {[%clk 0:02:48.6]} 12. e4 {[%clk 0:02:43.9]} 12... Bxg2 {[%clk
0:02:47.9]} 13. Kxg2 {[%clk 0:02:44.1]} 13... Nh5 {[%clk 0:02:47.7]} 14. f4
{[%clk 0:02:30.2]} 14... f5 {[%clk 0:02:44.7]} 15. fxe5 {[%clk 0:02:28.8]} 15...
Bxe5 {[%clk 0:02:44]} 16. Nd4 {[%clk 0:02:12.2]} 16... Ng7 {[%clk 0:02:34.5]}
17. Nf3 {[%clk 0:02:00.8]} 17... Bf6 {[%clk 0:02:26.8]} 18. Qc2 {[%clk
0:01:53.8]} 18... Rae8 {[%clk 0:02:23.8]} 19. Rae1 {[%clk 0:01:51]} 19... f4
{[%clk 0:01:16.6]} 20. e5 {[%clk 0:01:08.6]} 20... dxe5 {[%clk 0:01:17.5]} 21.
Ne4 {[%clk 0:01:06.2]} 21... fxg3 {[%clk 0:01:04.3]} 22. hxg3 {[%clk 0:01:04.9]}
22... Nef5 {[%clk 0:00:52.8]} 23. Nxf6+ {[%clk 0:01:02.7]} 23... Rxf6 {[%clk
0:00:53.7]} 24. Nxe5 {[%clk 0:01:03.4]} 24... Qc8 {[%clk 0:00:45.4]} 25. Qd3
{[%clk 0:00:56.6]} 25... Rff8 {[%clk 0:00:38.3]} 26. Re4 {[%clk 0:00:43.5]}
26... Nh5 {[%clk 0:00:33.4]} 27. Ng4 {[%clk 0:00:35.6]} 27... Rxe4 {[%clk
0:00:23.1]} 28. Qxe4 {[%clk 0:00:36.5]} 28... Nhxg3 {[%clk 0:00:15.6]} 29. Qe5
{[%clk 0:00:35.6]} 29... Nxf1 {[%clk 0:00:11.9]} 30. Nh6+ {[%clk 0:00:35.7]}
30... Nxh6 {[%clk 0:00:10.9]} 31. Qg7# {[%clk 0:00:36.6]} 1-0

[Event "Early-Titled-Tuesday-Blitz-July-09-2024"]
[Site "Chess.com"]
[Date "2024.07.09"]
[Round "8"]
[White "ljuks68"]
[Black "Orest_Vovk"]
[Result "1-0"]
[WhiteElo "2416"]
[BlackElo "2520"]
[TimeControl "180+1"]
[EndTime "9:28:53 PDT"]
[Termination "ljuks68 won by resignation"]

1. e4 {[%clk 0:02:44.5]} 1... g5 {[%clk 0:02:43.3]} 2. d4 {[%clk 0:02:43.1]}
2... g4 {[%clk 0:02:42.4]} 3. h3 {[%clk 0:02:40.4]} 3... g3 {[%clk 0:02:41.8]}
4. fxg3 {[%clk 0:02:38.4]} 4... d5 {[%clk 0:02:42]} 5. e5 {[%clk 0:02:35.9]}
5... c5 {[%clk 0:02:34.6]} 6. c3 {[%clk 0:02:35.5]} 6... Nc6 {[%clk 0:02:34.9]}
7. Nf3 {[%clk 0:02:35.8]} 7... Qb6 {[%clk 0:02:35.4]} 8. Na3 {[%clk 0:02:30.9]}
8... cxd4 {[%clk 0:02:33]} 9. cxd4 {[%clk 0:02:29.9]} 9... Bf5 {[%clk 0:02:33]}
10. Bd3 {[%clk 0:02:12.2]} 10... Bxd3 {[%clk 0:02:25.8]} 11. Qxd3 {[%clk
0:02:12]} 11... e6 {[%clk 0:02:26.2]} 12. Nb5 {[%clk 0:02:10.8]} 12... Bb4+
{[%clk 0:02:23.5]} 13. Bd2 {[%clk 0:02:02.5]} 13... a6 {[%clk 0:02:16.3]} 14.
Nd6+ {[%clk 0:01:57.7]} 14... Bxd6 {[%clk 0:02:15.6]} 15. exd6 {[%clk
0:01:58.6]} 15... f6 {[%clk 0:02:03.8]} 16. O-O {[%clk 0:01:49.2]} 16... O-O-O
{[%clk 0:02:00.4]} 17. Kh2 {[%clk 0:01:43.8]} 17... Rxd6 {[%clk 0:01:59]} 18. b4
{[%clk 0:01:34.3]} 18... Nge7 {[%clk 0:01:50]} 19. Rab1 {[%clk 0:01:28.7]} 19...
e5 {[%clk 0:01:48.7]} 20. b5 {[%clk 0:01:24.7]} 20... Nxd4 {[%clk 0:01:43.3]}
21. Nxd4 {[%clk 0:01:24]} 21... Qxd4 {[%clk 0:01:43.2]} 22. Qxd4 {[%clk
0:01:18.2]} 22... exd4 {[%clk 0:01:43]} 23. Bf4 {[%clk 0:00:55.5]} 23... Rb6
{[%clk 0:01:38.5]} 24. Rbc1+ {[%clk 0:00:47.5]} 24... Kd7 {[%clk 0:01:34.7]} 25.
Rc7+ {[%clk 0:00:46.1]} 25... Kd8 {[%clk 0:01:34.9]} 26. bxa6 {[%clk 0:00:38.6]}
26... bxa6 {[%clk 0:01:26.5]} 27. Ra7 {[%clk 0:00:36.3]} 27... Rc6 {[%clk
0:01:26.5]} 28. Rd1 {[%clk 0:00:18]} 28... Ke8 {[%clk 0:01:25.9]} 29. Rxd4
{[%clk 0:00:17.1]} 29... a5 {[%clk 0:01:07.4]} 30. Rd1 {[%clk 0:00:15.5]} 30...
Re6 {[%clk 0:01:03]} 31. Ra8+ {[%clk 0:00:13.2]} 31... Kf7 {[%clk 0:01:03.4]}
32. Rxh8 {[%clk 0:00:12.9]} 32... Kg7 {[%clk 0:01:03.7]} 33. Ra8 {[%clk
0:00:12.6]} 33... Nc6 {[%clk 0:01:03]} 34. Rxd5 {[%clk 0:00:10.9]} 34... Re2
{[%clk 0:01:02.8]} 35. Rc8 {[%clk 0:00:09.6]} 35... Nb4 {[%clk 0:01:01.7]} 36.
Rxa5 {[%clk 0:00:09]} 36... Nd3 {[%clk 0:01:01.1]} 37. Ra7+ {[%clk 0:00:08.1]}
37... Kg6 {[%clk 0:01:01]} 38. Rg8+ {[%clk 0:00:08.2]} 38... Kf5 {[%clk
0:01:01]} 39. Ra5+ {[%clk 0:00:08.7]} 39... Ke4 {[%clk 0:01:01.2]} 40. Re8+
{[%clk 0:00:08.9]} 40... Ne5 {[%clk 0:01:01.2]} 41. Raxe5+ {[%clk 0:00:07.9]}
41... fxe5 {[%clk 0:01:00.7]} 42. Rxe5+ {[%clk 0:00:08.5]} 1-0

[Event "Early-Titled-Tuesday-Blitz-July-09-2024"]
[Site "Chess.com"]
[Date "2024.07.09"]
[Round "8"]
[White "lluiss"]
[Black "SharathRk6"]
[Result "0-1"]
[WhiteElo "2192"]
[BlackElo "2456"]
[TimeControl "180+1"]
[EndTime "9:28:54 PDT"]
[Termination "SharathRk6 won by checkmate"]

1. Nf3 {[%clk 0:03:00.9]} 1... Nf6 {[%clk 0:02:59.4]} 2. d4 {[%clk 0:03:00.4]}
2... d5 {[%clk 0:02:58.7]} 3. c4 {[%clk 0:02:59.7]} 3... e6 {[%clk 0:02:56.9]}
4. cxd5 {[%clk 0:02:59.5]} 4... exd5 {[%clk 0:02:57.8]} 5. Nc3 {[%clk
0:02:59.7]} 5... Be7 {[%clk 0:02:56.9]} 6. Bg5 {[%clk 0:02:59.6]} 6... O-O
{[%clk 0:02:56.5]} 7. Qc2 {[%clk 0:02:59.7]} 7... h6 {[%clk 0:02:52.5]} 8. Bh4
{[%clk 0:02:59]} 8... c6 {[%clk 0:02:49.8]} 9. e3 {[%clk 0:02:58.9]} 9... Re8
{[%clk 0:02:49.3]} 10. Bd3 {[%clk 0:02:57.1]} 10... Ne4 {[%clk 0:02:48.1]} 11.
Bxe7 {[%clk 0:02:49.1]} 11... Qxe7 {[%clk 0:02:47.4]} 12. h3 {[%clk 0:02:21.7]}
12... Nd7 {[%clk 0:02:43.1]} 13. Bxe4 {[%clk 0:02:11.9]} 13... dxe4 {[%clk
0:02:41.3]} 14. Nd2 {[%clk 0:02:11.9]} 14... Nf6 {[%clk 0:02:41.6]} 15. O-O-O
{[%clk 0:02:12]} 15... a5 {[%clk 0:02:35.7]} 16. Kb1 {[%clk 0:02:09.5]} 16... b5
{[%clk 0:02:34.3]} 17. Ne2 {[%clk 0:02:08.2]} 17... Qd6 {[%clk 0:02:24.6]} 18.
Rc1 {[%clk 0:02:06.7]} 18... Bd7 {[%clk 0:02:18.6]} 19. Qc5 {[%clk 0:02:06.2]}
19... Qxc5 {[%clk 0:01:56.2]} 20. Rxc5 {[%clk 0:02:05.2]} 20... Nd5 {[%clk
0:01:56.8]} 21. Ng3 {[%clk 0:01:31.1]} 21... f5 {[%clk 0:01:44.4]} 22. Ne2
{[%clk 0:01:08.3]} 22... Nb4 {[%clk 0:01:37.6]} 23. Rf1 {[%clk 0:01:07.3]} 23...
Nd3 {[%clk 0:01:31.3]} 24. Rc3 {[%clk 0:01:02.2]} 24... Rac8 {[%clk 0:01:30.4]}
25. Nc1 {[%clk 0:00:58.8]} 25... Nb4 {[%clk 0:01:23.9]} 26. a3 {[%clk
0:00:57.8]} 26... Nd5 {[%clk 0:01:21.8]} 27. Ne2 {[%clk 0:00:56.3]} 27... Nxc3+
{[%clk 0:01:20.5]} 28. Nxc3 {[%clk 0:00:54.7]} 28... c5 {[%clk 0:01:20.2]} 29.
dxc5 {[%clk 0:00:51.6]} 29... Rxc5 {[%clk 0:01:21.1]} 30. Nb3 {[%clk 0:00:51.8]}
30... Rc7 {[%clk 0:01:20]} 31. Nxa5 {[%clk 0:00:52]} 31... Be6 {[%clk
0:01:08.9]} 32. Rd1 {[%clk 0:00:19.6]} 32... Bc4 {[%clk 0:01:04.4]} 33. Rd6
{[%clk 0:00:16.8]} 33... Ra8 {[%clk 0:00:57.8]} 34. b4 {[%clk 0:00:13.5]} 34...
Bd3+ {[%clk 0:00:57.5]} 35. Kb2 {[%clk 0:00:13.7]} 35... Rac8 {[%clk 0:00:58.1]}
36. Nd5 {[%clk 0:00:11.5]} 36... Rc2+ {[%clk 0:00:58.3]} 37. Kb3 {[%clk
0:00:11.8]} 37... Kf8 {[%clk 0:00:46.8]} 38. Nf4 {[%clk 0:00:07.1]} 38... R8c3#
{[%clk 0:00:45.3]} 0-1